[Event "Early-Titled-Tuesday-Blitz-February-20-2024"]
[Site "Chess.com"]
[Date "2024.02.20"]
[Round "1"]
[White "Mikhail_Golubev"]
[Black "Rosh1610"]
[Result "0-1"]
[WhiteElo "2665"]
[BlackElo "2369"]
[TimeControl "180+1"]
[EndTime "8:07:21 PST"]
[Termination "Rosh1610 won on time"]

1. e4 {[%clk 0:03:00.9]} 1... c5 {[%clk 0:02:54.1]} 2. Nf3 {[%clk 0:03:00.6]}
2... d6 {[%clk 0:02:54.3]} 3. d4 {[%clk 0:03:00.1]} 3... cxd4 {[%clk 0:02:54.9]}
4. Nxd4 {[%clk 0:03:00.7]} 4... Nf6 {[%clk 0:02:55.2]} 5. Nc3 {[%clk 0:03:01.3]}
5... a6 {[%clk 0:02:55.1]} 6. Bc4 {[%clk 0:03:00.1]} 6... e6 {[%clk 0:02:51.5]}
7. O-O {[%clk 0:03:00]} 7... b5 {[%clk 0:02:50]} 8. Bb3 {[%clk 0:02:59.7]} 8...
Be7 {[%clk 0:02:48.4]} 9. Qf3 {[%clk 0:02:55.8]} 9... Qb6 {[%clk 0:02:45.7]} 10.
Be3 {[%clk 0:02:54.8]} 10... Qb7 {[%clk 0:02:45.5]} 11. Qg3 {[%clk 0:02:54.6]}
11... Nbd7 {[%clk 0:02:44.7]} 12. Rad1 {[%clk 0:02:47.4]} 12... b4 {[%clk
0:02:43.5]} 13. Nf5 {[%clk 0:02:33.6]} 13... exf5 {[%clk 0:02:03.5]} 14. Qxg7
{[%clk 0:02:30.6]} 14... Rf8 {[%clk 0:01:51.6]} 15. Nd5 {[%clk 0:02:27.5]} 15...
Nxe4 {[%clk 0:00:32]} 16. Nxe7 {[%clk 0:02:24]} 16... Ndf6 {[%clk 0:00:16]} 17.
Nd5 {[%clk 0:01:02.1]} 17... Rg8 {[%clk 0:00:10.3]} 18. Qh6 {[%clk 0:00:36.4]}
18... Rg6 {[%clk 0:00:09]} 19. Qf4 {[%clk 0:00:23.2]} 19... Be6 {[%clk
0:00:09.2]} 20. Nxf6+ {[%clk 0:00:21]} 20... Nxf6 {[%clk 0:00:10.1]} 21. f3
{[%clk 0:00:18.6]} 21... Bxb3 {[%clk 0:00:08.2]} 22. axb3 {[%clk 0:00:16.2]}
22... Nd5 {[%clk 0:00:07]} 23. Qd4 {[%clk 0:00:15.3]} 23... Nxe3 {[%clk
0:00:07]} 24. Qxe3+ {[%clk 0:00:14.7]} 24... Kd7 {[%clk 0:00:07.1]} 25. Qd3
{[%clk 0:00:11.9]} 25... Qb5 {[%clk 0:00:04.5]} 26. Qxb5+ {[%clk 0:00:06.7]}
26... axb5 {[%clk 0:00:05.4]} 27. Rd4 {[%clk 0:00:04.8]} 27... Rc8 {[%clk
0:00:06]} 28. Rc1 {[%clk 0:00:04.2]} 28... Rc5 {[%clk 0:00:05.1]} 29. Rxb4
{[%clk 0:00:03.1]} 29... Rd5 {[%clk 0:00:05.4]} 0-1

[Event "Early-Titled-Tuesday-Blitz-February-20-2024"]
[Site "Chess.com"]
[Date "2024.02.20"]
[Round "1"]
[White "HATilay"]
[Black "RianKapriaga"]
[Result "1-0"]
[WhiteElo "2616"]
[BlackElo "2265"]
[TimeControl "180+1"]
[EndTime "8:07:22 PST"]
[Termination "HATilay won by checkmate"]

1. e4 {[%clk 0:03:00.9]} 1... c6 {[%clk 0:02:55.7]} 2. d4 {[%clk 0:03:00.6]}
2... d5 {[%clk 0:02:55.9]} 3. e5 {[%clk 0:03:01.1]} 3... Bf5 {[%clk 0:02:54.9]}
4. Bd3 {[%clk 0:03:01]} 4... Bxd3 {[%clk 0:02:54.3]} 5. Qxd3 {[%clk 0:03:01.9]}
5... e6 {[%clk 0:02:55]} 6. Ne2 {[%clk 0:03:02.3]} 6... Qa5+ {[%clk 0:02:54.4]}
7. Nbc3 {[%clk 0:03:02.6]} 7... Qa6 {[%clk 0:02:54.5]} 8. Qh3 {[%clk 0:03:03.2]}
8... Nd7 {[%clk 0:02:46.8]} 9. O-O {[%clk 0:03:02.9]} 9... Ne7 {[%clk 0:02:41]}
10. a4 {[%clk 0:03:00.7]} 10... h6 {[%clk 0:02:39.5]} 11. Re1 {[%clk 0:02:51.6]}
11... Rc8 {[%clk 0:02:35.8]} 12. a5 {[%clk 0:02:22.4]} 12... c5 {[%clk
0:02:26.3]} 13. Be3 {[%clk 0:02:17.7]} 13... Nf5 {[%clk 0:02:17.5]} 14. dxc5
{[%clk 0:01:56.7]} 14... Nxe3 {[%clk 0:02:13.3]} 15. Qxe3 {[%clk 0:01:56.7]}
15... Bxc5 {[%clk 0:02:10.2]} 16. Qg3 {[%clk 0:01:57.3]} 16... O-O {[%clk
0:02:04.6]} 17. Ra4 {[%clk 0:01:55.8]} 17... f5 {[%clk 0:01:44.3]} 18. b4 {[%clk
0:01:18.3]} 18... f4 {[%clk 0:01:23]} 19. Qh4 {[%clk 0:00:23.3]} 19... Bxf2+
{[%clk 0:01:06]} 20. Qxf2 {[%clk 0:00:23]} 20... Nxe5 {[%clk 0:01:05]} 21. b5
{[%clk 0:00:21.9]} 21... Qd6 {[%clk 0:01:03.2]} 22. Rxf4 {[%clk 0:00:22.4]}
22... Rxf4 {[%clk 0:00:51]} 23. Qxf4 {[%clk 0:00:22.9]} 23... Rf8 {[%clk
0:00:50.4]} 24. Qg3 {[%clk 0:00:23.4]} 24... Qc5+ {[%clk 0:00:44.4]} 25. Kh1
{[%clk 0:00:24]} 25... Nc4 {[%clk 0:00:41]} 26. h3 {[%clk 0:00:18.7]} 26... Ne3
{[%clk 0:00:35.2]} 27. Nf4 {[%clk 0:00:15.5]} 27... Qxc3 {[%clk 0:00:22.1]} 28.
Rxe3 {[%clk 0:00:15.4]} 28... Qxc2 {[%clk 0:00:14.8]} 29. Nxe6 {[%clk
0:00:14.9]} 29... Rf7 {[%clk 0:00:14.4]} 30. Rf3 {[%clk 0:00:11.1]} 30... Qd1+
{[%clk 0:00:11.1]} 31. Kh2 {[%clk 0:00:11.1]} 31... Re7 {[%clk 0:00:06.1]} 32.
Qg6 {[%clk 0:00:11.1]} 32... Qe2 {[%clk 0:00:02.7]} 33. Rf8# {[%clk 0:00:11.1]}
1-0

[Event "Early-Titled-Tuesday-Blitz-February-20-2024"]
[Site "Chess.com"]
[Date "2024.02.20"]
[Round "1"]
[White "Kostukov_Alex"]
[Black "kakarot_001"]
[Result "1-0"]
[WhiteElo "2358"]
[BlackElo "2663"]
[TimeControl "180+1"]
[EndTime "8:07:25 PST"]
[Termination "Kostukov_Alex won on time"]

1. g3 {[%clk 0:03:00.9]} 1... e5 {[%clk 0:02:51.3]} 2. c4 {[%clk 0:02:59.9]}
2... c6 {[%clk 0:02:49.3]} 3. Bg2 {[%clk 0:02:58.8]} 3... d5 {[%clk 0:02:45.9]}
4. cxd5 {[%clk 0:02:58.9]} 4... cxd5 {[%clk 0:02:46.5]} 5. d4 {[%clk 0:02:59.4]}
5... e4 {[%clk 0:02:33.8]} 6. Nc3 {[%clk 0:02:58.4]} 6... Nc6 {[%clk 0:02:23.4]}
7. Nh3 {[%clk 0:02:58.1]} 7... Bb4 {[%clk 0:02:21]} 8. O-O {[%clk 0:02:57.4]}
8... h6 {[%clk 0:02:10.2]} 9. Nf4 {[%clk 0:02:42.4]} 9... Nf6 {[%clk 0:02:08.8]}
10. f3 {[%clk 0:02:37.2]} 10... exf3 {[%clk 0:01:57.9]} 11. exf3 {[%clk
0:02:33.5]} 11... O-O {[%clk 0:01:56.2]} 12. Be3 {[%clk 0:02:28.2]} 12... Re8
{[%clk 0:01:48.8]} 13. Bf2 {[%clk 0:02:25.2]} 13... Bf5 {[%clk 0:01:41]} 14. Nd3
{[%clk 0:02:22.8]} 14... Bd6 {[%clk 0:01:33.3]} 15. f4 {[%clk 0:02:13]} 15...
Be4 {[%clk 0:01:07]} 16. Ne5 {[%clk 0:02:01.5]} 16... Bxg2 {[%clk 0:00:54.2]}
17. Kxg2 {[%clk 0:02:02.4]} 17... Bxe5 {[%clk 0:00:51.3]} 18. dxe5 {[%clk
0:01:56.4]} 18... Ne4 {[%clk 0:00:49.3]} 19. Qxd5 {[%clk 0:01:40.2]} 19... Nxc3
{[%clk 0:00:48.3]} 20. Qxd8 {[%clk 0:01:39.5]} 20... Rexd8 {[%clk 0:00:49.1]}
21. bxc3 {[%clk 0:01:39.9]} 21... Rd2 {[%clk 0:00:45.4]} 22. Rfd1 {[%clk
0:01:32.9]} 22... Rc2 {[%clk 0:00:43.3]} 23. Rdc1 {[%clk 0:01:31.2]} 23... Rd2
{[%clk 0:00:39.7]} 24. Rd1 {[%clk 0:01:21.2]} 24... Rc2 {[%clk 0:00:39]} 25. Rd3
{[%clk 0:01:12.4]} 25... Na5 {[%clk 0:00:34.4]} 26. Kf3 {[%clk 0:01:08.3]} 26...
b6 {[%clk 0:00:33.5]} 27. h4 {[%clk 0:01:06.9]} 27... Rc8 {[%clk 0:00:32.4]} 28.
Bd4 {[%clk 0:01:06.7]} 28... Nc4 {[%clk 0:00:29.6]} 29. h5 {[%clk 0:00:58.7]}
29... Rh2 {[%clk 0:00:23.5]} 30. g4 {[%clk 0:00:54.4]} 30... a5 {[%clk
0:00:15.4]} 31. Ke4 {[%clk 0:00:46.3]} 31... Rd8 {[%clk 0:00:09.5]} 32. a4
{[%clk 0:00:39]} 32... Nb2 {[%clk 0:00:06.3]} 33. Rg3 {[%clk 0:00:36.3]} 33...
Nc4 {[%clk 0:00:05.6]} 34. g5 {[%clk 0:00:31.5]} 34... Rxh5 {[%clk 0:00:04.2]}
35. gxh6 {[%clk 0:00:31.3]} 35... Rxh6 {[%clk 0:00:03.4]} 36. e6 {[%clk
0:00:31.4]} 36... Rxe6+ {[%clk 0:00:02.6]} 37. Kf5 {[%clk 0:00:30.6]} 37... Nd2
{[%clk 0:00:01.4]} 38. Rxg7+ {[%clk 0:00:29.2]} 1-0

[Event "Early-Titled-Tuesday-Blitz-February-20-2024"]
[Site "Chess.com"]
[Date "2024.02.20"]
[Round "1"]
[White "AttackSparrow"]
[Black "ElephantChessGenius"]
[Result "1/2-1/2"]
[WhiteElo "2634"]
[BlackElo "2314"]
[TimeControl "180+1"]
[EndTime "8:07:25 PST"]
[Termination "Game drawn - insufficient material"]

1. Nf3 {[%clk 0:03:00.9]} 1... c5 {[%clk 0:02:56.6]} 2. e3 {[%clk 0:03:00.8]}
2... g6 {[%clk 0:02:52.4]} 3. d4 {[%clk 0:03:01.7]} 3... Bg7 {[%clk 0:02:52.8]}
4. Be2 {[%clk 0:02:59.1]} 4... Nf6 {[%clk 0:02:51.4]} 5. O-O {[%clk 0:02:59]}
5... O-O {[%clk 0:02:51.3]} 6. c3 {[%clk 0:02:55.7]} 6... b6 {[%clk 0:02:48.3]}
7. a4 {[%clk 0:02:48]} 7... Bb7 {[%clk 0:02:46.8]} 8. a5 {[%clk 0:02:47.6]} 8...
cxd4 {[%clk 0:02:35.6]} 9. exd4 {[%clk 0:02:47.3]} 9... bxa5 {[%clk 0:02:35.2]}
10. Qa4 {[%clk 0:02:43.9]} 10... Nc6 {[%clk 0:02:32.8]} 11. Nbd2 {[%clk
0:02:44.1]} 11... Nd5 {[%clk 0:02:25.6]} 12. Nb3 {[%clk 0:02:36]} 12... Nb6
{[%clk 0:02:22.5]} 13. Qa3 {[%clk 0:02:28.1]} 13... d6 {[%clk 0:02:13]} 14. Nxa5
{[%clk 0:02:27.9]} 14... Nxa5 {[%clk 0:02:12.6]} 15. Qxa5 {[%clk 0:02:28.8]}
15... Qc7 {[%clk 0:02:12.1]} 16. Re1 {[%clk 0:02:20.2]} 16... Rfc8 {[%clk
0:02:08.4]} 17. Bf4 {[%clk 0:02:04.2]} 17... Qd7 {[%clk 0:01:53.2]} 18. Bg3
{[%clk 0:01:58.2]} 18... Nc4 {[%clk 0:01:50.5]} 19. Qa4 {[%clk 0:01:45.7]} 19...
Qxa4 {[%clk 0:01:30.3]} 20. Rxa4 {[%clk 0:01:46.6]} 20... Nxb2 {[%clk
0:01:30.9]} 21. Rb4 {[%clk 0:01:46.3]} 21... Bxf3 {[%clk 0:01:30.9]} 22. Bxf3
{[%clk 0:01:47.2]} 22... Nd3 {[%clk 0:01:30.9]} 23. Bxa8 {[%clk 0:01:42.5]}
23... Rxa8 {[%clk 0:01:13.9]} 24. Rxe7 {[%clk 0:01:39.7]} 24... Nxb4 {[%clk
0:01:13.4]} 25. cxb4 {[%clk 0:01:40.6]} 25... Bxd4 {[%clk 0:01:13.2]} 26. Bxd6
{[%clk 0:01:40.9]} 26... a5 {[%clk 0:01:11.2]} 27. bxa5 {[%clk 0:01:37.9]} 27...
Rxa5 {[%clk 0:01:04.9]} 28. g4 {[%clk 0:01:37]} 28... Ra2 {[%clk 0:01:00.4]} 29.
Bg3 {[%clk 0:01:29.5]} 29... Kg7 {[%clk 0:00:58.4]} 30. Rd7 {[%clk 0:01:27.8]}
30... Bf6 {[%clk 0:00:56.5]} 31. h4 {[%clk 0:01:26.8]} 31... h6 {[%clk
0:00:55.7]} 32. Kg2 {[%clk 0:01:24.9]} 32... g5 {[%clk 0:00:53.6]} 33. h5 {[%clk
0:01:23.8]} 33... Ra4 {[%clk 0:00:53.5]} 34. Kh3 {[%clk 0:01:17.5]} 34... Ra5
{[%clk 0:00:51.6]} 35. Rb7 {[%clk 0:01:12.5]} 35... Be5 {[%clk 0:00:50.1]} 36.
Bxe5+ {[%clk 0:01:08.4]} 36... Rxe5 {[%clk 0:00:49.8]} 37. Kg3 {[%clk
0:01:09.3]} 37... Ra5 {[%clk 0:00:49.6]} 38. f3 {[%clk 0:01:09.5]} 38... Ra3
{[%clk 0:00:49.6]} 39. Rb6 {[%clk 0:01:09]} 39... Rc3 {[%clk 0:00:47.9]} 40. Kf2
{[%clk 0:01:08.6]} 40... Ra3 {[%clk 0:00:47.9]} 41. Rb5 {[%clk 0:01:08.1]} 41...
Rc3 {[%clk 0:00:46.2]} 42. Ke2 {[%clk 0:01:05.1]} 42... Ra3 {[%clk 0:00:45.7]}
43. Rf5 {[%clk 0:01:05.8]} 43... Ra2+ {[%clk 0:00:45.8]} 44. Ke3 {[%clk
0:01:06]} 44... Ra3+ {[%clk 0:00:46.1]} 45. Kf2 {[%clk 0:01:06.3]} 45... Rb3
{[%clk 0:00:46]} 46. Ke2 {[%clk 0:01:04.2]} 46... Rb4 {[%clk 0:00:38.5]} 47. Kd3
{[%clk 0:01:03]} 47... Ra4 {[%clk 0:00:38.1]} 48. Ke3 {[%clk 0:01:02.8]} 48...
Rb4 {[%clk 0:00:38.4]} 49. Rd5 {[%clk 0:00:57.4]} 49... Ra4 {[%clk 0:00:36.8]}
50. Rd4 {[%clk 0:00:57.2]} 50... Ra3+ {[%clk 0:00:33.1]} 51. Ke4 {[%clk
0:00:56.6]} 51... Rb3 {[%clk 0:00:33.4]} 52. f4 {[%clk 0:00:54.9]} 52... gxf4
{[%clk 0:00:29.5]} 53. Kxf4 {[%clk 0:00:55.8]} 53... Rb1 {[%clk 0:00:29.5]} 54.
Rd3 {[%clk 0:00:52.9]} 54... Rf1+ {[%clk 0:00:29.4]} 55. Rf3 {[%clk 0:00:45.4]}
55... Rxf3+ {[%clk 0:00:23.8]} 56. Kxf3 {[%clk 0:00:46.3]} 56... Kf6 {[%clk
0:00:23.8]} 57. Kf4 {[%clk 0:00:46.1]} 57... Ke6 {[%clk 0:00:24.2]} 58. g5
{[%clk 0:00:46.1]} 58... hxg5+ {[%clk 0:00:22.3]} 59. Kxg5 {[%clk 0:00:47]}
59... Ke7 {[%clk 0:00:22.5]} 60. h6 {[%clk 0:00:35.9]} 60... Kf8 {[%clk
0:00:22.4]} 61. Kf6 {[%clk 0:00:36.5]} 61... Kg8 {[%clk 0:00:22.8]} 62. h7+
{[%clk 0:00:37.4]} 62... Kxh7 {[%clk 0:00:23.1]} 63. Kxf7 {[%clk 0:00:38.3]}
1/2-1/2

[Event "Early-Titled-Tuesday-Blitz-February-20-2024"]
[Site "Chess.com"]
[Date "2024.02.20"]
[Round "1"]
[White "Preobrazhenska_D2011"]
[Black "GeorgiosSouleidis"]
[Result "1-0"]
[WhiteElo "2387"]
[BlackElo "2686"]
[TimeControl "180+1"]
[EndTime "8:07:28 PST"]
[Termination "Preobrazhenska_D2011 won on time"]

1. e4 {[%clk 0:02:59.3]} 1... c5 {[%clk 0:02:57]} 2. Nf3 {[%clk 0:02:59.4]} 2...
e6 {[%clk 0:02:56.8]} 3. d4 {[%clk 0:02:59.2]} 3... cxd4 {[%clk 0:02:57.2]} 4.
Nxd4 {[%clk 0:03:00.1]} 4... Nf6 {[%clk 0:02:56.8]} 5. Nc3 {[%clk 0:02:59.2]}
5... Nc6 {[%clk 0:02:56.8]} 6. Nxc6 {[%clk 0:02:53.6]} 6... bxc6 {[%clk
0:02:57.7]} 7. e5 {[%clk 0:02:53]} 7... Nd5 {[%clk 0:02:57.9]} 8. Ne4 {[%clk
0:02:48.7]} 8... Qc7 {[%clk 0:02:57]} 9. f4 {[%clk 0:02:48.3]} 9... Qb6 {[%clk
0:02:57]} 10. a3 {[%clk 0:02:47.5]} 10... Ba6 {[%clk 0:02:23.7]} 11. c4 {[%clk
0:01:35.9]} 11... Ne3 {[%clk 0:02:23.8]} 12. Qd3 {[%clk 0:01:22.6]} 12... Nxf1
{[%clk 0:02:05.2]} 13. Rxf1 {[%clk 0:01:22.2]} 13... c5 {[%clk 0:02:01.6]} 14.
Qc2 {[%clk 0:00:52.1]} 14... Be7 {[%clk 0:01:52.4]} 15. Be3 {[%clk 0:00:49.9]}
15... Qc6 {[%clk 0:01:49.9]} 16. Rd1 {[%clk 0:00:38.7]} 16... O-O {[%clk
0:01:41.9]} 17. f5 {[%clk 0:00:33.2]} 17... exf5 {[%clk 0:01:31.8]} 18. Rxf5
{[%clk 0:00:34.1]} 18... Qe6 {[%clk 0:01:02.1]} 19. Nd6 {[%clk 0:00:29.9]} 19...
g6 {[%clk 0:00:43.8]} 20. Rf4 {[%clk 0:00:27.2]} 20... Qxe5 {[%clk 0:00:36.7]}
21. Re4 {[%clk 0:00:25.2]} 21... Qf6 {[%clk 0:00:32.1]} 22. Bxc5 {[%clk
0:00:23.9]} 22... Qg5 {[%clk 0:00:23.4]} 23. Qf2 {[%clk 0:00:15.9]} 23... Bxd6
{[%clk 0:00:20.7]} 24. Bxd6 {[%clk 0:00:16.1]} 24... Rfe8 {[%clk 0:00:20.3]} 25.
Rxe8+ {[%clk 0:00:11.6]} 25... Rxe8+ {[%clk 0:00:21.2]} 26. Kf1 {[%clk
0:00:12.1]} 26... Bxc4+ {[%clk 0:00:18.7]} 27. Kg1 {[%clk 0:00:12.7]} 27... Re2
{[%clk 0:00:17]} 28. Qf3 {[%clk 0:00:13.3]} 28... Qe3+ {[%clk 0:00:08.4]} 29.
Qxe3 {[%clk 0:00:13.8]} 29... Rxe3 {[%clk 0:00:09.3]} 30. Bc5 {[%clk 0:00:11.1]}
30... Re2 {[%clk 0:00:05]} 31. Rxd7 {[%clk 0:00:10.9]} 31... h5 {[%clk
0:00:01.3]} 32. Rxa7 {[%clk 0:00:08.9]} 32... Rxb2 {[%clk 0:00:01.3]} 33. Ra8+
{[%clk 0:00:08.7]} 33... Kh7 {[%clk 0:00:01.6]} 34. Rd8 {[%clk 0:00:06.7]} 1-0

[Event "Early-Titled-Tuesday-Blitz-February-20-2024"]
[Site "Chess.com"]
[Date "2024.02.20"]
[Round "1"]
[White "DarkAlekhine"]
[Black "N4700000"]
[Result "1-0"]
[WhiteElo "2857"]
[BlackElo "2479"]
[TimeControl "180+1"]
[EndTime "8:07:32 PST"]
[Termination "DarkAlekhine won on time"]

1. e4 {[%clk 0:03:00.9]} 1... d5 {[%clk 0:02:57.1]} 2. exd5 {[%clk 0:02:59.9]}
2... Nf6 {[%clk 0:02:57.1]} 3. d4 {[%clk 0:02:58.9]} 3... Bg4 {[%clk 0:02:56.8]}
4. Be2 {[%clk 0:02:58.4]} 4... Bxe2 {[%clk 0:02:55.3]} 5. Qxe2 {[%clk
0:02:59.3]} 5... Qxd5 {[%clk 0:02:54]} 6. Nf3 {[%clk 0:02:59.9]} 6... Nc6 {[%clk
0:02:52.8]} 7. c4 {[%clk 0:02:57.4]} 7... Qf5 {[%clk 0:02:45.6]} 8. O-O {[%clk
0:02:42.3]} 8... O-O-O {[%clk 0:02:26]} 9. Be3 {[%clk 0:02:40]} 9... e6 {[%clk
0:02:18.1]} 10. Nc3 {[%clk 0:02:35.5]} 10... Rg8 {[%clk 0:02:10.8]} 11. a3
{[%clk 0:02:22.3]} 11... g5 {[%clk 0:02:08.4]} 12. b4 {[%clk 0:02:21.7]} 12...
g4 {[%clk 0:02:01.4]} 13. Ne5 {[%clk 0:01:39.8]} 13... Nxe5 {[%clk 0:01:32.2]}
14. dxe5 {[%clk 0:01:40.7]} 14... Qxe5 {[%clk 0:01:31.9]} 15. Nb5 {[%clk
0:01:40]} 15... Bd6 {[%clk 0:00:58.6]} 16. Nxa7+ {[%clk 0:01:26.6]} 16... Kb8
{[%clk 0:00:56.4]} 17. g3 {[%clk 0:01:27.2]} 17... Qe4 {[%clk 0:00:33.5]} 18. c5
{[%clk 0:01:08.5]} 18... Be5 {[%clk 0:00:31.8]} 19. c6 {[%clk 0:01:07.9]} 19...
Qd3 {[%clk 0:00:18.5]} 20. Qxd3 {[%clk 0:01:05.1]} 20... Rxd3 {[%clk 0:00:19.4]}
21. Ra2 {[%clk 0:00:47]} 21... Nd5 {[%clk 0:00:17]} 22. cxb7 {[%clk 0:00:39.9]}
22... Kxb7 {[%clk 0:00:13.1]} 23. Bc5 {[%clk 0:00:37.5]} 23... Nc3 {[%clk
0:00:11.5]} 24. Rc2 {[%clk 0:00:37.3]} 24... Ra8 {[%clk 0:00:08.4]} 25. Re1
{[%clk 0:00:31.8]} 25... f6 {[%clk 0:00:07.9]} 26. Re3 {[%clk 0:00:17]} 26...
Rxe3 {[%clk 0:00:07.3]} 27. Bxe3 {[%clk 0:00:17.9]} 27... Rxa7 {[%clk
0:00:07.6]} 28. Bxa7 {[%clk 0:00:18.8]} 28... Kxa7 {[%clk 0:00:08.2]} 29. Rd2
{[%clk 0:00:19.1]} 29... Nd5 {[%clk 0:00:06]} 30. Rc2 {[%clk 0:00:18.6]} 30...
Kb6 {[%clk 0:00:06.1]} 31. Kg2 {[%clk 0:00:17.3]} 31... Bd4 {[%clk 0:00:04.8]}
32. h3 {[%clk 0:00:16.8]} 32... h5 {[%clk 0:00:04.1]} 33. hxg4 {[%clk
0:00:16.9]} 33... hxg4 {[%clk 0:00:05]} 34. Rc4 {[%clk 0:00:13.9]} 34... e5
{[%clk 0:00:04.8]} 35. a4 {[%clk 0:00:13.9]} 35... Bc3 {[%clk 0:00:02.3]} 36.
a5+ {[%clk 0:00:12.8]} 36... Kb7 {[%clk 0:00:02.2]} 37. a6+ {[%clk 0:00:08.4]}
37... Kxa6 {[%clk 0:00:02.1]} 38. Rc5 {[%clk 0:00:08.9]} 1-0

[Event "Early-Titled-Tuesday-Blitz-February-20-2024"]
[Site "Chess.com"]
[Date "2024.02.20"]
[Round "1"]
[White "ploxoi"]
[Black "Szparu"]
[Result "0-1"]
[WhiteElo "2442"]
[BlackElo "2787"]
[TimeControl "180+1"]
[EndTime "8:07:32 PST"]
[Termination "Szparu won by checkmate"]

1. d4 {[%clk 0:03:00.9]} 1... d5 {[%clk 0:02:59.2]} 2. c4 {[%clk 0:03:01.2]}
2... e6 {[%clk 0:02:57.8]} 3. Nf3 {[%clk 0:03:01.5]} 3... Nf6 {[%clk 0:02:57.9]}
4. g3 {[%clk 0:03:01.7]} 4... Bb4+ {[%clk 0:02:46.2]} 5. Bd2 {[%clk 0:03:01.6]}
5... Be7 {[%clk 0:02:46]} 6. Bg2 {[%clk 0:03:01.6]} 6... c6 {[%clk 0:02:44]} 7.
O-O {[%clk 0:03:01.3]} 7... O-O {[%clk 0:02:44.1]} 8. Qc2 {[%clk 0:03:01.5]}
8... b6 {[%clk 0:02:42.3]} 9. Rd1 {[%clk 0:03:01.5]} 9... Bb7 {[%clk 0:02:36.6]}
10. Bf4 {[%clk 0:03:00.8]} 10... Nbd7 {[%clk 0:02:35.2]} 11. Nc3 {[%clk
0:03:00.2]} 11... dxc4 {[%clk 0:02:28.8]} 12. Nd2 {[%clk 0:03:00.1]} 12... Nd5
{[%clk 0:02:25.4]} 13. Nxc4 {[%clk 0:03:00.3]} 13... Nxf4 {[%clk 0:02:23.7]} 14.
gxf4 {[%clk 0:03:01.2]} 14... Qc7 {[%clk 0:02:23.7]} 15. e3 {[%clk 0:02:52.8]}
15... Rac8 {[%clk 0:02:22.9]} 16. a3 {[%clk 0:02:43.6]} 16... g6 {[%clk
0:02:21]} 17. b4 {[%clk 0:02:43.2]} 17... Rfd8 {[%clk 0:02:13.8]} 18. Rac1
{[%clk 0:02:37.2]} 18... Qb8 {[%clk 0:02:10.2]} 19. Qb3 {[%clk 0:01:54.6]} 19...
Bf8 {[%clk 0:01:53.8]} 20. Rd2 {[%clk 0:01:16.6]} 20... Bg7 {[%clk 0:01:47.3]}
21. Rcd1 {[%clk 0:01:15.9]} 21... Ba8 {[%clk 0:01:46.3]} 22. Ne4 {[%clk
0:01:12.6]} 22... Nf6 {[%clk 0:01:45]} 23. Ne5 {[%clk 0:00:43.3]} 23... Nd5
{[%clk 0:01:44]} 24. Rc1 {[%clk 0:00:40.7]} 24... f6 {[%clk 0:01:22.2]} 25. Nd3
{[%clk 0:00:38.8]} 25... h6 {[%clk 0:01:22.3]} 26. Rdc2 {[%clk 0:00:35.8]} 26...
g5 {[%clk 0:01:19.3]} 27. fxg5 {[%clk 0:00:30.6]} 27... hxg5 {[%clk 0:01:20.2]}
28. Ng3 {[%clk 0:00:27.9]} 28... Kf7 {[%clk 0:01:11.2]} 29. Bf3 {[%clk
0:00:24.8]} 29... Rh8 {[%clk 0:01:09.4]} 30. Kg2 {[%clk 0:00:24.1]} 30... Rh4
{[%clk 0:01:08.6]} 31. a4 {[%clk 0:00:19.1]} 31... Rch8 {[%clk 0:01:08.2]} 32.
Rh1 {[%clk 0:00:19.8]} 32... R8h6 {[%clk 0:01:04.5]} 33. b5 {[%clk 0:00:20.2]}
33... c5 {[%clk 0:00:34.3]} 34. dxc5 {[%clk 0:00:19.5]} 34... g4 {[%clk
0:00:35]} 35. Be4 {[%clk 0:00:16.4]} 35... f5 {[%clk 0:00:34.6]} 36. Nxf5 {[%clk
0:00:16]} 36... Rxh2+ {[%clk 0:00:34.9]} 37. Rxh2 {[%clk 0:00:15.5]} 37... Qxh2+
{[%clk 0:00:31.6]} 38. Kf1 {[%clk 0:00:16.1]} 38... Nxe3+ {[%clk 0:00:25.8]} 39.
Nxe3 {[%clk 0:00:16.2]} 39... Bxe4 {[%clk 0:00:25.2]} 40. c6 {[%clk 0:00:08.9]}
40... Bf3 {[%clk 0:00:24.7]} 41. Ke1 {[%clk 0:00:08.2]} 41... Qg1+ {[%clk
0:00:23.5]} 42. Nf1 {[%clk 0:00:08.4]} 42... Qxf1+ {[%clk 0:00:22.6]} 43. Kd2
{[%clk 0:00:08]} 43... Qe2+ {[%clk 0:00:17.6]} 44. Kc1 {[%clk 0:00:08.3]} 44...
Qd1# {[%clk 0:00:18]} 0-1